bitfinex-derivatives/quotes_SOLF0:USTF0_20250923
["timestamp","ask_amount","ask_price","bid_price","bid_amount"]
[1758619843786,7.09,219.39,219.36,0.03326401]
[1758619843987,7.09,219.4,219.36,0.03326401]
[1758619844186,7.09,219.38,219.36,0.03326401]
[1758619845595,7.09,219.39,219.36,0.03326401]
[1758619849793,6.00137626,219.4,219.36,0.03326401]
[1758619849994,3.58348883,219.39,219.36,0.03326401]
[1758619850195,6.00137626,219.4,219.36,0.03326401]
[1758619850504,7.09,219.38,219.36,0.03326401]
[1758619850698,7.09,219.4,219.36,0.03326401]
[1758619850893,0.90191361,219.41,219.36,0.03326401]
[1758619851196,7.09,219.4,219.36,0.03326401]
[1758619852199,1.90167626,219.39,219.27,5.1571748]
[1758619852390,1.90167626,219.39,219.27,1.94167626]
[1758619852391,10.67271639,219.38,219.27,1.94167626]
[1758619852589,7.09,219.35,219.27,0.04]
[1758619852893,7.09,219.35,219.25,1.90167626]
[1758619853096,4.1009,219.33,219.24,0.04]
[1758619853294,7.09,219.32,219.24,1.94167626]
[1758619853692,7.12274222,219.32,219.24,1.94167626]
[1758619854897,7.12274222,219.32,219.26,1.90167626]
[1758619855197,7.12274222,219.32,219.28,1.90167626]
[1758619855398,7.12274222,219.32,219.28,1.94167626]
[1758619856098,7.09,219.31,219.28,1.94167626]
[1758619856697,0.03274222,219.32,219.28,1.90167626]
[1758619856903,0.03274222,219.32,219.2,358.09094867]
[1758619856904,7.12274222,219.32,219.26,0.04]
[1758619857104,7.12274222,219.32,219.26,1.94167626]
[1758619858404,7.12274222,219.32,219.26,1.90167626]
[1758619861700,11.22384222,219.32,219.2,344.6]
[1758619861906,12.94187577,219.31,219.2,1.94167626]
[1758619862204,7.24,219.29,219.2,1.94167626]
[1758619862603,7.24,219.29,219.23,1.94167626]
[1758619863005,0.03113689,219.27,219.24,0.04]
[1758619863202,0.03113689,219.27,219.26,1.90167626]
[1758619864707,0.03113689,219.27,219.26,1.94167626]
[1758619868107,7.24,219.26,219.23,1.90167626]
[1758619868806,7.24,219.26,219.17,0.04]
[1758619869305,7.24,219.24,219.15,1.90167626]
[1758619869610,4.1027,219.23,219.15,1.90167626]
[1758619870110,7.26886746,219.24,219.15,1.90167626]
[1758619870504,7.26886746,219.24,219.13,4.1445]
[1758619870699,7.26886746,219.24,219.16,1.90167626]
[1758619872209,7.26886746,219.24,219.1,0.04]
[1758619872406,7.24,219.22,219.13,1.90167626]
[1758619873109,1.90167626,219.23,219.13,1.90167626]
[1758619873110,7.24,219.19,219.13,1.90167626]
[1758619875511,7.24,219.19,219.12,4.1047]
[1758619875812,7.24,219.19,219.13,1.90167626]
[1758619877916,7.24,219.19,219.12,4.1047]
[1758619878315,7.24,219.19,219.13,1.90167626]
[1758619879816,7.24,219.19,219.13,1.95167626]
[1758619880707,7.24,219.19,219.13,0.05]
[1758619881415,7.24,219.19,219.12,1.90167626]
[1758619882218,7.24,219.19,219.09,4.1552]
[1758619882416,9.14167626,219.19,219.1,1.90167626]
[1758619882621,13.24507626,219.19,219.09,0.05]
[1758619882822,13.24507626,219.19,219.08,1.90167626]
[1758619883320,6.00507626,219.19,219.07,113.56]
[1758619883622,7.29,219.18,219.08,1.90167626]
[1758619883924,6.00547626,219.17,219.08,1.90167626]
[1758619884118,7.32019371,219.15,219.07,113.56]
[1758619884920,7.29,219.14,219.07,113.56]
[1758619885124,7.29,219.14,219.06,6.05737626]
[1758619886410,7.29,219.12,219.03,6.00797626]
[1758619886618,7.29,219.06,218.95,1.90167626]
[1758619886814,7.29,219.06,218.96,0.05]
[1758619887122,0.03003454,219.03,218.96,0.05]
[1758619887325,0.03003454,219.03,218.97,0.05]
[1758619888928,0.03003454,219.03,219.01,0.05]
[1758619890023,7.32003454,219.03,218.97,4.1574]
[1758619893812,7.32003454,219.03,218.98,0.06]
[1758619893813,0.03003454,219.03,218.98,0.06]
[1758619894326,0.03003454,219.03,219.01,4.1067]
[1758619894617,0.03003454,219.03,219.02,0.06]
[1758619897718,0.93840274,219.14,219.04,0.06]
[1758619897719,1.90167626,219.14,219.04,0.06]
[1758619897923,7.23,219.13,219.04,1.96167626]
[1758619898922,7.23,219.13,219.05,4.106]
[1758619900023,7.23,219.13,219.07,4.1055]
[1758619901022,15.7,219.2,219.04,63.8743]
[1758619901023,7.23,219.2,219.08,1.96167626]
[1758619901234,9.13167626,219.2,219.11,4.1048]
[1758619901728,7.23,219.2,219.11,4.1048]
[1758619901926,1.90167626,219.19,219.11,4.1048]
[1758619902126,7.23,219.18,219.11,4.1048]
[1758619902626,7.23,219.18,219.13,6.00617626]
[1758619902831,7.23,219.21,219.13,6.00617626]
[1758619903224,7.23,219.21,219.15,4.1041]
[1758619903431,15.8020406,219.42,219.19,1.90167626]
[1758619903432,9.13167626,219.3,219.19,1.90167626]
[1758619903630,7.23,219.28,219.19,1.90167626]
[1758619904322,7.23,219.28,219.19,6.00497626]
[1758619904629,7.23,219.28,219.22,1.90167626]
[1758619905524,7.23,219.28,219.25,1.90167626]
[1758619906631,1.90167626,219.33,219.22,0.06]
[1758619906829,7.23,219.32,219.22,0.06]
[1758619907029,7.23,219.32,219.23,1.90167626]
[1758619910432,7.23,219.32,219.22,0.06]
[1758619914237,7.23,219.32,219.22,4.1628]
[1758619915336,2.97309712,219.3,219.13,170.58151432]
[1758619915634,7.23,219.29,219.13,170.58151432]
[1758619915841,7.23,219.29,219.15,4.1041]
[1758619916041,7.23,219.29,219.14,0.06]
[1758619916838,7.23,219.29,219.17,4.1037]
[1758619920739,2.97309712,219.32,219.18,0.04]
[1758619920941,2.97309712,219.28,219.13,0.04]
[1758619921144,7.18,219.27,219.13,0.04]
[1758619921645,7.18,219.27,219.14,4.1043]
[1758619922448,7.18,219.27,219.16,4.1039]
[1758619922644,7.18,219.27,219.16,4.1439]
[1758619924237,7.18,219.27,219.16,0.04]
[1758619926957,7.18,219.26,219.13,0.04]
[1758619927351,7.18,219.26,219.12,4.1045]
[1758619927559,7.18,219.24,219.12,4.1045]
[1758619928552,7.18,219.24,219.14,4.1043]
[1758619928754,7.18,219.24,219.15,0.04]
[1758619929155,7.18,219.24,219.16,4.1038]
[1758619931358,7.18,219.24,219.15,0.04]
[1758619932759,7.18,219.24,219.16,4.1039]
[1758619932959,7.18,219.24,219.15,0.04]
[1758619933161,7.18,219.3,219.18,0.04]
[1758619933756,7.18,219.3,219.18,63.8727]
[1758619934060,7.18,219.3,219.19,0.05]
[1758619934859,7.18,219.3,219.23,4.1026]
[1758619935766,7.18,219.3,219.2,4.1032]
[1758619936266,7.18,219.3,219.21,4.1028]
[1758619936562,7.18,219.3,219.19,0.05]
[1758619937760,7.18,219.3,219.23,4.1026]
[1758619941669,7.18,219.3,219.16,0.05]
[1758619941867,10.15309712,219.3,219.16,0.05]
[1758619942763,14.25459712,219.3,219.17,4.1037]
[1758619943367,7.06,219.28,219.16,0.05]
[1758619944756,7.06,219.28,219.2,4.1032]
[1758619945964,7.06,219.28,219.12,0.05]
[1758619946170,10.03309712,219.25,219.12,0.05]
[1758619946367,7.06,219.23,219.12,0.05]
[1758619946563,3.60753134,219.22,219.12,0.05]
[1758619946764,7.06,219.21,219.12,0.05]
[1758619951970,7.06,219.21,219.13,4.1044]
[1758619952172,7.06,219.21,219.12,0.05]
[1758619954370,7.06,219.21,219.11,4.1049]
[1758619956067,7.06,219.21,219.13,4.1044]
[1758619956765,7.06,219.21,219.1,4.1049]
[1758619957371,2.97309712,219.24,219.08,168.11762463]
[1758619957677,3.61560042,219.23,219.08,168.11762463]
[1758619957973,7.56,219.21,219.08,172.22292463]
[1758619958371,4.1028,219.22,219.08,172.22292463]
[1758619958574,7.56,219.21,219.09,4.1051]
[1758619958877,7.56,219.23,219.09,0.05]
[1758619959873,7.56,219.23,219.12,4.1047]
[1758619960066,11.6626,219.23,219.09,0.05]
[1758619961273,11.6626,219.23,219.1,4.1049]
[1758619964480,11.6626,219.23,219.11,0.05]
[1758619965675,7.56,219.21,219.11,0.05]
[1758619966270,7.56,219.21,219.11,4.1548]
[1758619967480,4.1032,219.2,219.11,0.05]
[1758619967673,7.56,219.19,219.08,4.1054]
[1758619968782,11.6635,219.19,219.08,4.1054]
[1758619970182,4.1038,219.17,219.06,97.3]
[1758619970372,63.8313,219.19,219.06,97.3]
[1758619970576,11.17145051,219.18,219.03,1.90628565]
[1758619970774,63.8313,219.19,219.03,1.95628565]
[1758619970775,7.56,219.13,219.03,1.95628565]
[1758619970981,7.56,219.13,219.03,6.06268565]
[1758619973687,7.56,219.13,219.06,1.90628565]
[1758619973882,7.56,219.25,219.1,1.90628565]
[1758619974183,7.56,219.21,219.11,0.05]
[1758619976991,7.56,219.21,219.12,1.90628565]
[1758619977191,1.90628565,219.16,219.04,1.95628565]
[1758619977386,7.56,219.15,219.04,1.95628565]
[1758619977691,7.56,219.15,219.07,1.90628565]
[1758619978488,7.56,219.15,219.04,1.95628565]
[1758619979388,1.90628565,219.14,219.04,1.95628565]
[1758619979588,7.56,219.13,219.04,1.95628565]
[1758619979889,7.56,219.13,219.04,0.05]
[1758619981890,7.56,219.13,219.04,6.06248565]
[1758619982785,7.56,219.13,219.06,4.1058]
[1758619982983,7.36,219.16,219.08,0.05]
[1758619985186,7.36,219.16,219.09,4.1052]
[1758619985590,4.103,219.21,219.07,1.90628565]
[1758619985591,7.36,219.21,219.11,0.05]
[1758619986899,7.36,219.21,219.11,4.1548]
[1758619987792,7.36,219.21,219.13,1.95628565]
[1758619988200,7.36,219.21,219.13,6.06058565]
[1758619988496,9.26628565,219.25,219.17,0.05]
[1758619989694,7.36,219.25,219.18,1.90628565]
[1758619990391,7.36,219.35,219.24,1.90628565]
[1758619990596,7.36,219.33,219.26,1.90628565]
[1758619992999,7.36,219.33,219.26,1.94628565]
[1758619993592,7.36,219.33,219.26,0.04]
[1758619993790,7.36,219.33,219.27,1.90628565]
[1758619997703,7.36,219.33,219.25,1.90628565]
[1758619999098,7.36,219.33,219.27,1.90628565]
[1758620000803,6.96,219.33,219.25,1.90628565]
[1758620001107,6.96,219.33,219.17,0.04]
[1758620001108,1.90628565,219.27,219.17,0.04]
[1758620001311,6.96,219.26,219.17,1.94628565]
[1758620005204,6.96,219.26,219.17,1.90628565]
[1758620005399,6.96,219.26,219.14,346.78628565]
[1758620005697,63.7952,219.32,219.14,346.78628565]
[1758620005698,6.96,219.23,219.14,346.78628565]
[1758620006402,1.90628565,219.24,219.14,344.88]
[1758620006604,6.96,219.23,219.15,4.1041]
[1758620006798,8.86628565,219.23,219.15,4.1041]
[1758620009202,6.96,219.23,219.17,4.1037]
[1758620010200,6.96,219.23,219.14,344.88]
[1758620010201,6.96,219.33,219.19,4.1033]
[1758620010400,1.90628565,219.29,219.2,1.90628565]
[1758620010603,6.96,219.28,219.2,1.90628565]
[1758620012004,6.96,219.28,219.21,4.103]
[1758620013904,6.96,219.28,219.24,0.04]
[1758620014110,69.91181113,219.44,219.24,1.94628565]
[1758620014111,7.1,219.32,219.24,1.94628565]
[1758620016313,9.00628565,219.32,219.24,1.94628565]
[1758620020308,7.1,219.32,219.24,6.04858565]
[1758620020505,7.1,219.32,219.28,1.90628565]
[1758620020902,7.1,219.32,219.29,0.04]
[1758620021914,7.1,219.32,219.29,4.1415]
[1758620022114,7.1,219.38,219.29,4.1015]
[1758620022907,9.00628565,219.38,219.26,112.942]
[1758620023102,7.1,219.35,219.26,4.102]
[1758620023509,1.90628565,219.34,219.25,1.90628565]
[1758620023709,7.1,219.31,219.23,6.00878565]
[1758620024012,7.1,219.31,219.23,4.1025]
[1758620025919,7.1,219.41,219.27,0.04]
[1758620026115,1.90628565,219.4,219.3,1.90628565]
[1758620026311,7.1,219.39,219.3,1.90628565]
[1758620027206,7.1,219.37,219.28,1.90628565]
[1758620028512,1.90628565,219.36,219.27,1.90628565]
[1758620028815,7.1,219.35,219.27,1.90628565]
[1758620031013,7.1,219.35,219.26,0.04]
[1758620031918,9.00628565,219.35,219.26,0.04]
[1758620032720,7.1,219.35,219.26,0.04]
[1758620032909,7.1,219.35,219.22,4.1027]
[1758620033122,7.1,219.32,219.19,0.04]
[1758620033717,7.1,219.3,219.19,0.04]
[1758620036924,7.1,219.3,219.19,4.1432]
[1758620040625,7.1,219.3,219.21,4.103]
[1758620040826,7.1,219.3,219.22,0.04]
[1758620042334,7.1,219.3,219.22,4.1427]
[1758620044236,7.1,219.3,219.24,4.1025]
[1758620044734,7.1,219.3,219.22,0.04]
[1758620045841,7.1,219.3,219.23,4.1026]
[1758620046940,7.1,219.3,219.22,0.04]
[1758620046941,7.1,219.3,219.24,4.1023]
[1758620047138,7.1,219.3,219.22,0.04]
[1758620048235,7.25,219.37,219.22,0.04]
[1758620048439,7.25,219.35,219.22,0.04]
[1758620049138,7.25,219.33,219.22,4.1026]
[1758620049943,7.25,219.33,219.23,0.04]
[1758620051545,7.25,219.39,219.28,4.1016]
[1758620051748,7.25,219.37,219.28,4.1016]
[1758620052050,7.25,219.35,219.28,4.1016]
[1758620052647,7.25,219.35,219.22,5.1571748]
[1758620053234,7.25,219.35,219.23,4.1025]
[1758620053938,7.25,219.35,219.25,4.1022]
[1758620055539,4.1004,219.35,219.24,0.03]
[1758620055745,7.31,219.34,219.22,62.1427]
[1758620056149,7.31,219.34,219.23,4.1025]
[1758620057146,3.66630555,219.33,219.23,4.1025]
[1758620057352,7.31,219.32,219.23,4.1025]
[1758620058950,7.31,219.32,219.22,58.04]
[1758620059143,7.31,219.32,219.23,3.00211048]
[1758620059954,7.31,219.32,219.25,4.1021]
[1758620060752,7.31,219.32,219.23,3.00211048]
[1758620060753,7.31,219.32,219.22,5.1171748]
[1758620061049,7.31,219.32,219.19,7.6616742]
[1758620061050,7.31,219.27,219.16,5.1171748]
[1758620061250,7.31,219.27,219.19,0.03]
[1758620061554,7.31,219.27,219.19,4.1334]
[1758620065354,7.31,219.27,219.19,4.1034]
[1758620065659,3.25068321,219.26,219.19,4.1034]
[1758620065856,7.31,219.27,219.19,4.1034]
[1758620066252,3.25068301,219.26,219.19,4.1034]
[1758620066556,7.31,219.27,219.19,4.1034]
[1758620067354,3.25057214,219.26,219.19,4.1034]
[1758620067548,7.31,219.27,219.19,4.1034]
[1758620070656,7.31,219.27,219.18,113.55]
[1758620070657,10.40211048,219.34,219.21,4.143]
[1758620070854,7.43,219.32,219.21,4.143]
[1758620071054,3.25148173,219.31,219.21,4.143]
[1758620071456,7.43,219.3,219.21,4.143]
[1758620072360,7.43,219.3,219.23,4.1026]
[1758620074166,3.23829901,219.29,219.23,4.1026]
[1758620074466,7.43,219.3,219.21,0.04]
[1758620074661,7.43,219.28,219.21,0.04]
[1758620075357,2.97211048,219.31,219.2,117.443]
[1758620075358,7.07331048,219.31,219.2,117.443]
[1758620075561,3.2385234,219.3,219.2,117.443]
[1758620075776,3.2385234,219.29,219.2,117.443]
[1758620075963,7.43,219.27,219.2,4.103]
[1758620078672,7.43,219.27,219.2,117.363]
[1758620079865,7.43,219.27,219.2,4.143]
[1758620080174,7.43,219.27,219.2,117.323]
[1758620080472,7.43,219.27,219.2,4.143]
[1758620080670,7.43,219.27,219.2,117.323]
[1758620080871,7.43,219.27,219.2,117.303]
[1758620081866,7.43,219.3,219.22,4.1428]
[1758620082063,3.23846792,219.29,219.22,4.1428]
[1758620082259,3.23846792,219.28,219.22,4.1428]
[1758620082459,7.43,219.3,219.22,4.1428]
[1758620082760,3.25306969,219.29,219.22,4.1428]
[1758620082970,7.43,219.3,219.22,4.1428]
[1758620083172,3.22517191,219.29,219.22,4.1428]
[1758620083374,7.43,219.3,219.23,4.1025]
[1758620083572,3.22520842,219.29,219.23,4.1025]
[1758620083773,7.43,219.3,219.23,4.1025]
[1758620084071,3.22520421,219.29,219.23,4.1025]
[1758620084275,7.43,219.3,219.23,4.1025]
[1758620084466,3.22523452,219.29,219.23,4.1025]
[1758620084667,7.43,219.3,219.23,4.1025]
[1758620084867,3.22523038,219.29,219.23,4.1025]
[1758620085070,7.43,219.3,219.23,4.1025]
[1758620085272,3.22545256,219.29,219.23,4.1025]
[1758620085464,7.43,219.3,219.23,4.1025]
[1758620085668,3.22532379,219.29,219.23,4.1025]
[1758620085868,7.43,219.3,219.24,4.1023]
[1758620086075,7.43,219.29,219.25,0.04]
[1758620086376,7.43,219.33,219.25,0.04]
[1758620086674,7.43,219.31,219.25,0.04]
[1758620086870,3.22531181,219.3,219.25,0.04]
[1758620087180,7.43,219.32,219.24,4.1023]
[1758620087475,7.43,219.3,219.24,4.1023]
[1758620089874,7.43,219.3,219.24,4.1423]
[1758620097383,7.43,219.3,219.24,0.04]
[1758620098379,1.90286555,219.25,219.15,7.6616742]
[1758620098584,63.7852,219.35,219.16,112.74]
[1758620098585,1.90286555,219.23,219.16,112.74]
[1758620098788,1.90286555,219.23,219.15,0.04]
[1758620099081,1.90286555,219.23,219.16,112.78]
[1758620099776,1.90286555,219.2,219.15,0.04]
[1758620099978,9.33286555,219.2,219.14,344.68]
[1758620100375,7.43,219.16,219.09,0.04]
[1758620100581,1.90286555,219.17,219.09,0.04]
[1758620100582,1.90286555,219.17,219.11,112.82]
[1758620100779,9.34286555,219.17,219.11,112.82]
[1758620101086,7.44,219.17,219.11,112.88]
[1758620101579,1.90286555,219.19,219.13,0.06]
[1758620102382,1.90286555,219.2,219.13,0.06]
[1758620103087,7.44,219.19,219.13,0.06]
[1758620103286,1.90286555,219.18,219.11,112.82]
[1758620103485,7.44,219.17,219.11,112.82]
[1758620103883,7.44,219.17,219.1,0.06]
[1758620104085,7.44,219.14,219.06,4.1657]
[1758620104283,7.44,219.14,219.06,116.9457]
[1758620104788,1.90286555,219.12,219.06,112.84]
[1758620105385,9.34286555,219.12,219.06,112.84]
[1758620105984,9.34286555,219.12,219.07,4.1056]
[1758620106190,1.90286555,219.15,219.08,0.06]
[1758620106990,1.90286555,219.15,219.08,4.1654]
[1758620107185,7.44,219.16,219.08,4.1654]
[1758620107391,7.44,219.16,219.08,1.96286555]
[1758620107691,7.44,219.16,219.1,4.105]
[1758620107885,7.44,219.12,219.02,0.06]
[1758620108086,7.44,219.12,219.02,1.96286555]
[1758620108485,7.44,219.12,219.03,4.1063]
[1758620109185,1.90286555,219.09,219.03,4.1063]
[1758620109390,1.90286555,219.09,219.04,113.26]
[1758620109590,7.44,219.08,219.04,113.26]
[1758620110092,7.44,219.08,219.01,344.66]
[1758620113487,7.44,219.08,219.01,348.7667]
[1758620115392,1.90286555,219.1,219.01,348.7667]
[1758620115393,7.21,219.09,219.03,4.1063]
[1758620115593,7.21,219.09,219.01,344.66]
[1758620115790,7.21,219.09,219.02,0.07]
[1758620116489,9.11286555,219.13,219.06,0.07]
[1758620116689,9.11286555,219.13,219.06,113.23]
[1758620117390,7.21,219.13,219.06,113.23]
[1758620117892,7.21,219.13,219.07,4.1056]
[1758620118093,9.11286555,219.13,219.07,4.1056]
[1758620119891,9.11286555,219.13,219.06,113.23]
[1758620120095,9.11286555,219.13,219.07,113.16]
[1758620120488,7.21,219.12,219.07,113.16]
[1758620120694,1.90286555,219.13,219.07,113.16]
[1758620120895,7.21,219.12,219.07,113.16]
[1758620121092,1.90286555,219.13,219.07,113.16]
[1758620121493,7.21,219.12,219.07,113.16]
[1758620122201,1.90286555,219.13,219.07,113.16]
[1758620122691,7.21,219.12,219.07,113.16]
[1758620122896,1.90286555,219.13,219.07,113.16]
[1758620123193,7.21,219.17,219.08,4.1054]
[1758620123399,7.21,219.12,219.08,4.1754]
[1758620124395,7.21,219.12,219.08,0.07]
[1758620124597,7.21,219.12,219.07,113.16]
[1758620125199,1.90286555,219.13,219.07,113.16]
[1758620125493,7.21,219.12,219.03,6.07906555]
[1758620125699,7.21,219.12,219.04,113.08]
[1758620127098,7.21,219.09,219.04,113.02]
[1758620127299,1.90286555,219.1,219.04,113.02]
[1758620127495,9.11286555,219.1,219.04,113.02]
[1758620128699,7.21,219.1,219.04,113.02]
[1758620129193,7.21,219.1,219.05,4.1758]
[1758620130101,7.21,219.1,219.05,4.1058]
[1758620130302,1.90286555,219.14,219.06,0.07]
[1758620130791,7.21,219.16,219.07,4.1056]
[1758620130995,1.90286555,219.15,219.07,4.1056]
[1758620132002,7.21,219.16,219.09,0.05]
[1758620132395,7.21,219.16,219.09,112.99]
[1758620132797,7.21,219.16,219.09,117.0951]
[1758620133094,7.21,219.16,219.09,112.99]
[1758620133602,7.21,219.16,219.09,114.89286555]
[1758620134194,1.90286555,219.18,219.1,0.05]
[1758620134997,1.90286555,219.18,219.11,4.1048]
[1758620135194,1.90286555,219.18,219.1,0.05]
[1758620135402,7.58,219.17,219.1,4.1549]
[1758620136198,1.90286555,219.19,219.12,0.05]
[1758620137397,7.58,219.18,219.12,0.05]
[1758620138200,1.90286555,219.21,219.12,0.05]
[1758620138405,7.58,219.22,219.14,0.05]
[1758620139205,7.58,219.22,219.17,4.1037]
[1758620139505,111.23630916,219.24,219.18,0.05]
[1758620140805,7.58,219.25,219.18,0.05]
[1758620141906,9.48286555,219.25,219.18,0.05]
[1758620142907,1.90286555,219.19,219.1,0.05]
[1758620143210,7.58,219.18,219.1,55.07286555]
[1758620143407,7.58,219.18,219.1,53.17]
[1758620144209,7.58,219.16,219.06,6.05856555]
[1758620144411,7.58,219.16,219.07,106.42]
[1758620145013,7.58,219.16,219.07,110.5255]
[1758620145814,7.58,219.16,219.09,4.1052]
[1758620147015,7.58,219.16,219.09,4.1552]
[1758620152915,7.58,219.16,219.1,4.1049]
[1758620158216,7.58,219.16,219.09,0.05]
[1758620158217,7.58,219.21,219.11,4.1547]
[1758620158419,7.58,219.19,219.11,4.1547]
[1758620158619,3.16575185,219.18,219.11,4.1547]
[1758620158808,7.58,219.19,219.11,4.1547]
[1758620160221,7.58,219.19,219.13,4.1045]
[1758620169526,2.97688775,219.25,219.13,4.1045]
[1758620169527,7.08,219.24,219.14,4.1042]
[1758620169726,7.08,219.22,219.14,4.1042]
[1758620169925,7.08,219.22,219.15,0.04]
[1758620170521,7.08,219.26,219.15,0.04]
[1758620170720,7.08,219.26,219.2,4.1031]
[1758620171726,7.08,219.26,219.21,0.03177858]
[1758620172030,7.08,219.28,219.21,0.03177858]
[1758620172824,7.08,219.28,219.22,4.1028]
[1758620173831,7.08,219.28,219.21,0.03177858]
[1758620173832,7.08,219.35,219.24,4.1024]
[1758620174033,7.08,219.33,219.24,4.1024]
[1758620174233,2.97688775,219.36,219.24,4.1024]
[1758620174234,7.08,219.31,219.24,4.1024]
[1758620174540,7.08,219.35,219.26,4.102]
[1758620174739,7.08,219.33,219.26,4.102]
[1758620175440,7.08,219.33,219.26,4.142]
[1758620176136,7.08,219.33,219.28,4.1017]
[1758620176332,7.08,219.37,219.28,4.1417]
[1758620178649,7.08,219.37,219.3,4.1013]
[1758620178939,7.08,219.37,219.31,0.04]
[1758620179737,7.08,219.37,219.32,4.1009]
[1758620179941,7.08,219.4,219.32,4.1409]
[1758620181145,7.08,219.4,219.34,4.1005]
[1758620181530,7.08,219.48,219.34,2.97688775]
[1758620181738,7.08,219.48,219.36,4.1002]
[1758620182046,7.08,219.5,219.37,68.28]
[1758620182245,7.08,219.5,219.38,0.04]
[1758620182740,7.08,219.5,219.37,71.21688775]
[1758620182741,7.08,219.5,219.41,0.04]
[1758620183433,7.08,219.5,219.41,13.90977936]
[1758620183637,7.08,219.5,219.42,112.68]
[1758620184036,7.08,219.53,219.42,112.68]
[1758620184440,4.0969,219.54,219.42,112.68]
[1758620184835,7.08,219.53,219.42,112.68]
[1758620185040,4.0969,219.54,219.42,112.68]
[1758620185442,7.08,219.49,219.35,0.04]
[1758620185745,7.08,219.49,219.35,112.7]
[1758620185942,2.97688775,219.5,219.35,126.03098545]
[1758620186249,7.08,219.49,219.35,112.7]
[1758620186443,2.97688775,219.5,219.35,112.7]
[1758620186639,7.08,219.49,219.35,112.7]
[1758620187241,7.07458775,219.5,219.35,112.7]
[1758620188045,7.08,219.49,219.35,112.7]
[1758620188642,7.08,219.49,219.35,112.68]
[1758620188845,2.97688775,219.47,219.35,112.68]
[1758620189049,7.08,219.46,219.35,0.04]
[1758620189249,7.08,219.46,219.31,348.761]
[1758620189250,2.97688775,219.44,219.32,112.64]
[1758620189644,7.08,219.43,219.32,112.64]
[1758620190548,2.97688775,219.44,219.32,112.64]
[1758620191340,7.43,219.43,219.32,112.64]
[1758620191541,2.97688775,219.44,219.32,112.64]
[1758620191741,7.43,219.43,219.33,4.1606]
[1758620193754,7.43,219.43,219.33,0.06]
[1758620195748,7.43,219.41,219.32,112.64]
[1758620195952,2.97688775,219.41,219.31,344.66]
[1758620196152,7.43,219.4,219.31,344.66]
[1758620196354,11.5296,219.4,219.31,344.66]
[1758620196755,7.43,219.4,219.31,344.66]
[1758620197158,7.43,219.4,219.32,0.06]
[1758620198660,7.07618775,219.41,219.31,344.66]
[1758620199259,7.43,219.4,219.29,260.30160948]
[1758620199454,7.43,219.4,219.29,264.40310948]
[1758620199654,2.97688775,219.41,219.29,147.68160948]
[1758620199860,2.97688775,219.41,219.27,112.62]
[1758620200065,4.1,219.37,219.27,112.62]
[1758620200262,7.07688775,219.37,219.27,112.62]
[1758620200458,7.43,219.36,219.27,112.62]
[1758620200960,7.07688775,219.37,219.27,112.62]
[1758620201265,7.43,219.36,219.27,112.62]
[1758620201471,7.43,219.34,219.27,112.62]